Workbook

Sheet ТРУБА
A1: z | K1: z | L1: z | W1: z | X1: z | Y1: z | Z1: z | AA1: z | AB1: z | AC1: z | AD1: z | AE1: z | AF1: z | AG1: z | AH1: z | AI1: z | AJ1: z
K5: Коэфициент | L5: Маса
B6: См. Косые резы и выполнять согласно чертежа | H6: План / шт | I6: 110 | L6: =SUM(Таблица1[Столбец19]) ->  | AK6: 1 | AL6: 2
B7: № п/п | C7: длина | D7: ширина условная расчет программы | E7: кол-во на изделие | F7: материал профиль трубы | G7: тол-на | H7: План | I7: кол-во на план | K7: =SUM(I8:I30) -> 550 | L7: =SUM(L8:L30) -> 174.6184 | AK7: Выпадающий список по этому столбику | AL7: Выпадающий список по данным, которые остались возможны
A8: =IF(E8=0,"z","") ->  | B8: =IF(I8=0,"",R8) -> 1 | C8: 425 | D8: 500 | E8: 2 | F8: Труба 30х20х1.2 | G8: =IF(F8="","",VLOOKUP(F8,Таблица1[[#All],[Столбец5]:[коэф]],2,0)) -> 1.2 | H8: =I6 -> 110 | I8: =E8*H8 -> 220 | K8: =IF(F8="","",VLOOKUP(F8,Таблица1[[#All],[Столбец5]:[коэф]],6,0)) -> 1.76 | L8: =IFERROR(C8*D8*I8*K8/1000000-IF(E8=0,0,M8),"") -> 82.28 | M8: 0 | R8: =IF(I8=0,0,1) -> 1
A9: =IF(E9=0,"z","") ->  | B9: =IF(I9=0,"",R9) -> 2 | C9: 280 | D9: 500 | E9: 2 | F9: Труба 40х20х1.2 | G9: =IF(F9="","",VLOOKUP(F9,Таблица1[[#All],[Столбец5]:[коэф]],2,0)) -> 1.2 | H9: =I6 -> 110 | I9: =E9*H9 -> 220 | K9: =IF(F9="","",VLOOKUP(F9,Таблица1[[#All],[Столбец5]:[коэф]],6,0)) -> 2.14 | L9: =IFERROR(C9*D9*I9*K9/1000000-IF(E9=0,0,M9),"") -> 65.912 | M9: 0 | R9: =IF(I9=0,R8,R8+1) -> 2
B10: =IF(I10=0,"",R10) -> 3 | C10: 273 | D10: 500 | E10: 1 | F10: Труба 30х20х1.2 | G10: =IF(F10="","",VLOOKUP(F10,Таблица1[[#All],[Столбец5]:[коэф]],2,0)) -> 1.2 | H10: =I6 -> 110 | I10: 110 | K10: =IF(F10="","",VLOOKUP(F10,Таблица1[[#All],[Столбец5]:[коэф]],6,0)) -> 1.76 | L10: 26.4264 | R10: =IF(I10=0,R9,R9+1) -> 3
A11: z | D11: 500 | F11: Труба пл.ов. 30х15х1,5 | G11: =IF(F11="","",VLOOKUP(F11,Таблица1[[#All],[Столбец5]:[коэф]],2,0)) -> 1.5 | H11: =I6 -> 110 | I11: 0 | K11: =IF(F11="","",VLOOKUP(F11,Таблица1[[#All],[Столбец5]:[коэф]],6,0)) -> 1.918 | L11: 0 | R11: =IF(I11=0,R10,R10+1) -> 3
A12: z | D12: 500 | F12: Труба пл.ов. 30х15х1,5 | G12: =IF(F12="","",VLOOKUP(F12,Таблица1[[#All],[Столбец5]:[коэф]],2,0)) -> 1.5 | H12: =I6 -> 110 | I12: 0 | K12: =IF(F12="","",VLOOKUP(F12,Таблица1[[#All],[Столбец5]:[коэф]],6,0)) -> 1.918 | L12: 0 | R12: 3
A13: z | D13: 500 | F13: Труба 30х15х1,5 | G13: =IF(F13="","",VLOOKUP(F13,Таблица1[[#All],[Столбец5]:[коэф]],2,0)) -> 1.5 | H13: =I6 -> 110 | I13: 0 | K13: =IF(F13="","",VLOOKUP(F13,Таблица1[[#All],[Столбец5]:[коэф]],6,0)) -> 1.92 | L13: 0 | R13: 3
A14: z | D14: 500 | F14: Круг 12 | G14: =IF(F14="","",VLOOKUP(F14,Таблица1[[#All],[Столбец5]:[коэф]],2,0)) -> 12 | H14: =I6 -> 110 | I14: 0 | K14: =IF(F14="","",VLOOKUP(F14,Таблица1[[#All],[Столбец5]:[коэф]],6,0)) -> 1.776 | L14: 0 | R14: 3
A15: z | D15: 500 | G15: =IF(F15="","",VLOOKUP(F15,Таблица1[[#All],[Столбец5]:[коэф]],2,0)) ->  | H15: =I6 -> 110 | I15: 0 | K15: =IF(F15="","",VLOOKUP(F15,Таблица1[[#All],[Столбец5]:[коэф]],6,0)) ->  | R15: 3
A16: z | D16: 500 | G16: =IF(F16="","",VLOOKUP(F16,Таблица1[[#All],[Столбец5]:[коэф]],2,0)) ->  | H16: =I6 -> 110 | I16: 0 | K16: =IF(F16="","",VLOOKUP(F16,Таблица1[[#All],[Столбец5]:[коэф]],6,0)) ->  | R16: 3
A17: z | D17: 500 | G17: =IF(F17="","",VLOOKUP(F17,Таблица1[[#All],[Столбец5]:[коэф]],2,0)) ->  | H17: =I6 -> 110 | I17: 0 | K17: =IF(F17="","",VLOOKUP(F17,Таблица1[[#All],[Столбец5]:[коэф]],6,0)) ->  | R17: 3
A18: z | D18: 500 | G18: =IF(F18="","",VLOOKUP(F18,Таблица1[[#All],[Столбец5]:[коэф]],2,0)) ->  | H18: =I6 -> 110 | I18: 0 | K18: =IF(F18="","",VLOOKUP(F18,Таблица1[[#All],[Столбец5]:[коэф]],6,0)) ->  | R18: 3
A19: z | D19: 500 | G19: =IF(F19="","",VLOOKUP(F19,Таблица1[[#All],[Столбец5]:[коэф]],2,0)) ->  | H19: =I6 -> 110 | I19: 0 | K19: =IF(F19="","",VLOOKUP(F19,Таблица1[[#All],[Столбец5]:[коэф]],6,0)) ->  | R19: 3
A20: z | D20: 500 | G20: =IF(F20="","",VLOOKUP(F20,Таблица1[[#All],[Столбец5]:[коэф]],2,0)) ->  | H20: =I6 -> 110 | I20: 0 | K20: =IF(F20="","",VLOOKUP(F20,Таблица1[[#All],[Столбец5]:[коэф]],6,0)) ->  | R20: 3
A21: z | D21: 500 | G21: =IF(F21="","",VLOOKUP(F21,Таблица1[[#All],[Столбец5]:[коэф]],2,0)) ->  | H21: =I6 -> 110 | I21: 0 | K21: =IF(F21="","",VLOOKUP(F21,Таблица1[[#All],[Столбец5]:[коэф]],6,0)) ->  | R21: 3
A22: z | D22: 500 | G22: =IF(F22="","",VLOOKUP(F22,Таблица1[[#All],[Столбец5]:[коэф]],2,0)) ->  | H22: =I6 -> 110 | I22: 0 | K22: =IF(F22="","",VLOOKUP(F22,Таблица1[[#All],[Столбец5]:[коэф]],6,0)) ->  | R22: 3
A23: z | D23: 500 | G23: =IF(F23="","",VLOOKUP(F23,Таблица1[[#All],[Столбец5]:[коэф]],2,0)) ->  | H23: =I6 -> 110 | I23: 0 | K23: =IF(F23="","",VLOOKUP(F23,Таблица1[[#All],[Столбец5]:[коэф]],6,0)) ->  | R23: 3
A24: z | D24: 500 | G24: =IF(F24="","",VLOOKUP(F24,Таблица1[[#All],[Столбец5]:[коэф]],2,0)) ->  | H24: =I6 -> 110 | I24: 0 | K24: =IF(F24="","",VLOOKUP(F24,Таблица1[[#All],[Столбец5]:[коэф]],6,0)) ->  | R24: 3
A25: z | D25: 500 | G25: =IF(F25="","",VLOOKUP(F25,Таблица1[[#All],[Столбец5]:[коэф]],2,0)) ->  | H25: =I6 -> 110 | I25: 0 | K25: =IF(F25="","",VLOOKUP(F25,Таблица1[[#All],[Столбец5]:[коэф]],6,0)) ->  | R25: 3
A26: z | D26: 500 | G26: =IF(F26="","",VLOOKUP(F26,Таблица1[[#All],[Столбец5]:[коэф]],2,0)) ->  | H26: =I6 -> 110 | I26: 0 | K26: =IF(F26="","",VLOOKUP(F26,Таблица1[[#All],[Столбец5]:[коэф]],6,0)) ->  | R26: 3
A27: z | D27: 500 | G27: =IF(F27="","",VLOOKUP(F27,Таблица1[[#All],[Столбец5]:[коэф]],2,0)) ->  | H27: =I6 -> 110 | I27: 0 | K27: =IF(F27="","",VLOOKUP(F27,Таблица1[[#All],[Столбец5]:[коэф]],6,0)) ->  | R27: 3
A28: z | D28: 500 | G28: =IF(F28="","",VLOOKUP(F28,Таблица1[[#All],[Столбец5]:[коэф]],2,0)) ->  | H28: =I6 -> 110 | I28: 0 | K28: =IF(F28="","",VLOOKUP(F28,Таблица1[[#All],[Столбец5]:[коэф]],6,0)) ->  | R28: 3
A29: z | D29: 500 | G29: =IF(F29="","",VLOOKUP(F29,Таблица1[[#All],[Столбец5]:[коэф]],2,0)) ->  | H29: =I6 -> 110 | I29: 0 | K29: =IF(F29="","",VLOOKUP(F29,Таблица1[[#All],[Столбец5]:[коэф]],6,0)) ->  | R29: 3
A30: z | D30: 500 | G30: =IF(F30="","",VLOOKUP(F30,Таблица1[[#All],[Столбец5]:[коэф]],2,0)) ->  | H30: =I6 -> 110 | I30: 0 | K30: =IF(F30="","",VLOOKUP(F30,Таблица1[[#All],[Столбец5]:[коэф]],6,0)) ->  | R30: 3
I33: получить | N33: остаток | R33: детали | X33: расход | AA33: лом
B34: № п/п | D34: Стандарт. длина мм | F34: Марка материала | G34: Толщина мм | H34: Кол-во труб | I34: Масса целых кг | J34: Масса деловых кг | K34: коэф 2м | L34: Резы | M34: Общая кг | N34: Деловой остаток с целых кг | O34: Деловой остаок с деловых кг | P34: Общая кг | Q34: ЛОМ кг | R34: Масса деталей целых кг | S34: Масса деталей деловых кг | T34: Общая кг | X34: Расход целых кг | Y34: Расход деловых кг | Z34: Общий кг | AA34: ЛОМ дубль кг | AB34: отход на порезку | AC34: лом чистый целых | AD34: лом чистый деловых | AE34: Ширина реза мм | AF34: Марка материала | AG34: Марка материала Астра
A35: z | E35: копия | F35: копия
A36: z | B36: Столбец1 | C36: Столбец2 | D36: Дл | E36: Столбец4 | F36: Столбец5 | G36: Толщ | H36: Столбец7 | I36: Столбец8 | J36: Столбец9 | K36: коэф | L36: резы | M36: Столбец12 | N36: Столбец13 | O36: Столбец14 | P36: Столбец15 | Q36: Столбец16 | R36: Столбец17 | S36: Столбец18 | T36: Столбец19 | U36: Столбец20 | V36: Столбец21 | W36: Столбец22 | X36: Столбец23 | Y36: Столбец24 | Z36: Столбец25 | AA36: Столбец26 | AB36: Столбец27 | AC36: Столбец28 | AD36: Столбец29 | AE36: шир.рез | AF36: ГОСТ | AG36: АСТРА | AH36: слово | AI36: профиль | AJ36: Столбец35 | AK36: нов.толщ | AL36: нов.назв
A37: =IF(Таблица1[[#This Row],[Столбец19]]=0,"z","") ->  | D37: 3000 | E37: =Таблица1[[#This Row],[АСТРА]] -> Круг 12 мм, 12.0 мм, кр12 | F37: =Таблица1[[#This Row],[ГОСТ]] -> Круг 12 | G37: 12 | H37: =SUMIFS(#REF!,#REF!,500,#REF!,Таблица1[[#This Row],[Дл]],#REF!,Таблица1[[#This Row],[Толщ]],#REF!,Таблица1[[#This Row],[АСТРА]]) ->  | I37: =SUMIFS(#REF!,#REF!,Таблица1[[#This Row],[Дл]],#REF!,"=500",#REF!,Таблица1[[#This Row],[Толщ]],#REF!,Таблица1[[#This Row],[АСТРА]]) ->  | J37: =SUMIFS(#REF!,#REF!,"<"&Таблица1[[#This Row],[Дл]],#REF!,"=500",#REF!,Таблица1[[#This Row],[Толщ]],#REF!,Таблица1[[#This Row],[АСТРА]]) ->  | K37: 1.776 | L37: =SUMIFS($I$8:$I$30,$F$8:$F$30,Таблица1[[#This Row],[Столбец5]]) -> 0 | M37: =Таблица1[[#This Row],[Столбец8]]+Таблица1[[#This Row],[Столбец9]] ->  | N37: =SUMIFS(#REF!,#REF!,Таблица1[[#This Row],[Дл]],#REF!,"=500",#REF!,Таблица1[[#This Row],[Толщ]],#REF!,Таблица1[[#This Row],[АСТРА]]) ->  | O37: =SUMIFS(#REF!,#REF!,"<"&Таблица1[[#This Row],[Дл]],#REF!,"=500",#REF!,Таблица1[[#This Row],[Толщ]],#REF!,Таблица1[[#This Row],[АСТРА]]) ->  | P37: =Таблица1[[#This Row],[Столбец13]]+Таблица1[[#This Row],[Столбец14]] ->  | Q37: =Таблица1[[#This Row],[Столбец28]]+Таблица1[[#This Row],[Столбец29]]-Таблица1[[#This Row],[Столбец27]] ->  | R37: =SUMIFS(#REF!,#REF!,Таблица1[[#This Row],[Дл]],#REF!,"=500",#REF!,Таблица1[[#This Row],[Толщ]],#REF!,Таблица1[[#This Row],[АСТРА]]) ->  | S37: =SUMIFS(#REF!,#REF!,"<"&Таблица1[[#This Row],[Дл]],#REF!,"=500",#REF!,Таблица1[[#This Row],[Толщ]],#REF!,Таблица1[[#This Row],[АСТРА]]) ->  | T37: =Таблица1[[#This Row],[Столбец17]]+Таблица1[[#This Row],[Столбец18]] ->  | X37: =SUMIFS(#REF!,#REF!,Таблица1[[#This Row],[Дл]],#REF!,"=500",#REF!,Таблица1[[#This Row],[Толщ]],#REF!,Таблица1[[#This Row],[АСТРА]]) ->  | Y37: =SUMIFS(#REF!,#REF!,"<"&Таблица1[[#This Row],[Дл]],#REF!,"=500",#REF!,Таблица1[[#This Row],[Толщ]],#REF!,Таблица1[[#This Row],[АСТРА]]) ->  | Z37: =Таблица1[[#This Row],[Столбец23]]+Таблица1[[#This Row],[Столбец24]] ->  | AA37: =Таблица1[[#This Row],[Столбец28]]+Таблица1[[#This Row],[Столбец29]]-Таблица1[[#This Row],[Столбец27]] ->  | AB37: =Таблица1[[#This Row],[резы]]*Таблица1[[#This Row],[шир.рез]]/1000*Таблица1[[#This Row],[коэф]]/2 -> 0 | AC37: =SUMIFS(#REF!,#REF!,Таблица1[[#This Row],[Дл]],#REF!,"=500",#REF!,Таблица1[[#This Row],[Толщ]],#REF!,Таблица1[[#This Row],[АСТРА]]) ->  | AD37: =SUMIFS(#REF!,#REF!,"<"&Таблица1[[#This Row],[Дл]],#REF!,"=500",#REF!,Таблица1[[#This Row],[Толщ]],#REF!,Таблица1[[#This Row],[АСТРА]]) ->  | AE37: 5 | AF37: =CONCATENATE(Таблица1[[#This Row],[слово]]," ",Таблица1[[#This Row],[профиль]]) -> Круг 12 | AG37: Круг 12 мм, 12.0 мм, кр12 | AH37: Круг | AI37: 12 | AJ37: 12 | AL37: =CONCATENATE(Таблица1[[#This Row],[слово]]," ",Таблица1[[#This Row],[Столбец35]]) -> Круг 12
A38: =IF(Таблица1[[#This Row],[Столбец19]]=0,"z","") ->  | D38: 6000 | E38: =Таблица1[[#This Row],[АСТРА]] -> Труба 10х10, 1.0 мм, тр1010 | F38: =Таблица1[[#This Row],[ГОСТ]] -> Труба 10х10х1 | G38: 1 | H38: =SUMIFS(#REF!,#REF!,500,#REF!,Таблица1[[#This Row],[Дл]],#REF!,Таблица1[[#This Row],[Толщ]],#REF!,Таблица1[[#This Row],[АСТРА]]) ->  | I38: =SUMIFS(#REF!,#REF!,Таблица1[[#This Row],[Дл]],#REF!,"=500",#REF!,Таблица1[[#This Row],[Толщ]],#REF!,Таблица1[[#This Row],[АСТРА]]) ->  | J38: =SUMIFS(#REF!,#REF!,"<"&Таблица1[[#This Row],[Дл]],#REF!,"=500",#REF!,Таблица1[[#This Row],[Толщ]],#REF!,Таблица1[[#This Row],[АСТРА]]) ->  | K38: 0.54 | L38: =SUMIFS($I$8:$I$30,$F$8:$F$30,Таблица1[[#This Row],[Столбец5]]) -> 0 | M38: =Таблица1[[#This Row],[Столбец8]]+Таблица1[[#This Row],[Столбец9]] ->  | N38: =SUMIFS(#REF!,#REF!,Таблица1[[#This Row],[Дл]],#REF!,"=500",#REF!,Таблица1[[#This Row],[Толщ]],#REF!,Таблица1[[#This Row],[АСТРА]]) ->  | O38: =SUMIFS(#REF!,#REF!,"<"&Таблица1[[#This Row],[Дл]],#REF!,"=500",#REF!,Таблица1[[#This Row],[Толщ]],#REF!,Таблица1[[#This Row],[АСТРА]]) ->  | P38: =Таблица1[[#This Row],[Столбец13]]+Таблица1[[#This Row],[Столбец14]] ->  | Q38: =Таблица1[[#This Row],[Столбец28]]+Таблица1[[#This Row],[Столбец29]]-Таблица1[[#This Row],[Столбец27]] ->  | R38: =SUMIFS(#REF!,#REF!,Таблица1[[#This Row],[Дл]],#REF!,"=500",#REF!,Таблица1[[#This Row],[Толщ]],#REF!,Таблица1[[#This Row],[АСТРА]]) ->  | S38: =SUMIFS(#REF!,#REF!,"<"&Таблица1[[#This Row],[Дл]],#REF!,"=500",#REF!,Таблица1[[#This Row],[Толщ]],#REF!,Таблица1[[#This Row],[АСТРА]]) ->  | T38: =Таблица1[[#This Row],[Столбец17]]+Таблица1[[#This Row],[Столбец18]] ->  | X38: =SUMIFS(#REF!,#REF!,Таблица1[[#This Row],[Дл]],#REF!,"=500",#REF!,Таблица1[[#This Row],[Толщ]],#REF!,Таблица1[[#This Row],[АСТРА]]) ->  | Y38: =SUMIFS(#REF!,#REF!,"<"&Таблица1[[#This Row],[Дл]],#REF!,"=500",#REF!,Таблица1[[#This Row],[Толщ]],#REF!,Таблица1[[#This Row],[АСТРА]]) ->  | Z38: =Таблица1[[#This Row],[Столбец23]]+Таблица1[[#This Row],[Столбец24]] ->  | AA38: =Таблица1[[#This Row],[Столбец28]]+Таблица1[[#This Row],[Столбец29]]-Таблица1[[#This Row],[Столбец27]] ->  | AB38: =Таблица1[[#This Row],[резы]]*Таблица1[[#This Row],[шир.рез]]/1000*Таблица1[[#This Row],[коэф]]/2 -> 0 | AC38: =SUMIFS(#REF!,#REF!,Таблица1[[#This Row],[Дл]],#REF!,"=500",#REF!,Таблица1[[#This Row],[Толщ]],#REF!,Таблица1[[#This Row],[АСТРА]]) ->  | AD38: =SUMIFS(#REF!,#REF!,"<"&Таблица1[[#This Row],[Дл]],#REF!,"=500",#REF!,Таблица1[[#This Row],[Толщ]],#REF!,Таблица1[[#This Row],[АСТРА]]) ->  | AE38: 5 | AF38: =CONCATENATE(Таблица1[[#This Row],[слово]]," ",Таблица1[[#This Row],[профиль]]) -> Труба 10х10х1 | AG38: Труба 10х10, 1.0 мм, тр1010 | AH38: Труба | AI38: 10х10х1 | AJ38: 10х10 | AK38: 1 | AL38: =CONCATENATE(Таблица1[[#This Row],[слово]]," ",Таблица1[[#This Row],[Столбец35]]) -> Труба 10х10
A39: =IF(Таблица1[[#This Row],[Столбец19]]=0,"z","") ->  | D39: 6000 | E39: =Таблица1[[#This Row],[АСТРА]] -> Труба 20х20 чм, 1.0 мм | F39: =Таблица1[[#This Row],[ГОСТ]] -> Труба 20х20х1 | G39: 1 | H39: =SUMIFS(#REF!,#REF!,500,#REF!,Таблица1[[#This Row],[Дл]],#REF!,Таблица1[[#This Row],[Толщ]],#REF!,Таблица1[[#This Row],[АСТРА]]) ->  | I39: =SUMIFS(#REF!,#REF!,Таблица1[[#This Row],[Дл]],#REF!,"=500",#REF!,Таблица1[[#This Row],[Толщ]],#REF!,Таблица1[[#This Row],[АСТРА]]) ->  | J39: =SUMIFS(#REF!,#REF!,"<"&Таблица1[[#This Row],[Дл]],#REF!,"=500",#REF!,Таблица1[[#This Row],[Толщ]],#REF!,Таблица1[[#This Row],[АСТРА]]) ->  | K39: 1.248 | L39: =SUMIFS($I$8:$I$30,$F$8:$F$30,Таблица1[[#This Row],[Столбец5]]) -> 0 | M39: =Таблица1[[#This Row],[Столбец8]]+Таблица1[[#This Row],[Столбец9]] ->  | N39: =SUMIFS(#REF!,#REF!,Таблица1[[#This Row],[Дл]],#REF!,"=500",#REF!,Таблица1[[#This Row],[Толщ]],#REF!,Таблица1[[#This Row],[АСТРА]]) ->  | O39: =SUMIFS(#REF!,#REF!,"<"&Таблица1[[#This Row],[Дл]],#REF!,"=500",#REF!,Таблица1[[#This Row],[Толщ]],#REF!,Таблица1[[#This Row],[АСТРА]]) ->  | P39: =Таблица1[[#This Row],[Столбец13]]+Таблица1[[#This Row],[Столбец14]] ->  | Q39: =Таблица1[[#This Row],[Столбец28]]+Таблица1[[#This Row],[Столбец29]]-Таблица1[[#This Row],[Столбец27]] ->  | R39: =SUMIFS(#REF!,#REF!,Таблица1[[#This Row],[Дл]],#REF!,"=500",#REF!,Таблица1[[#This Row],[Толщ]],#REF!,Таблица1[[#This Row],[АСТРА]]) ->  | S39: =SUMIFS(#REF!,#REF!,"<"&Таблица1[[#This Row],[Дл]],#REF!,"=500",#REF!,Таблица1[[#This Row],[Толщ]],#REF!,Таблица1[[#This Row],[АСТРА]]) ->  | T39: =Таблица1[[#This Row],[Столбец17]]+Таблица1[[#This Row],[Столбец18]] ->  | X39: =SUMIFS(#REF!,#REF!,Таблица1[[#This Row],[Дл]],#REF!,"=500",#REF!,Таблица1[[#This Row],[Толщ]],#REF!,Таблица1[[#This Row],[АСТРА]]) ->  | Y39: =SUMIFS(#REF!,#REF!,"<"&Таблица1[[#This Row],[Дл]],#REF!,"=500",#REF!,Таблица1[[#This Row],[Толщ]],#REF!,Таблица1[[#This Row],[АСТРА]]) ->  | Z39: =Таблица1[[#This Row],[Столбец23]]+Таблица1[[#This Row],[Столбец24]] ->  | AA39: =Таблица1[[#This Row],[Столбец28]]+Таблица1[[#This Row],[Столбец29]]-Таблица1[[#This Row],[Столбец27]] ->  | AB39: =Таблица1[[#This Row],[резы]]*Таблица1[[#This Row],[шир.рез]]/1000*Таблица1[[#This Row],[коэф]]/2 -> 0 | AC39: =SUMIFS(#REF!,#REF!,Таблица1[[#This Row],[Дл]],#REF!,"=500",#REF!,Таблица1[[#This Row],[Толщ]],#REF!,Таблица1[[#This Row],[АСТРА]]) ->  | AD39: =SUMIFS(#REF!,#REF!,"<"&Таблица1[[#This Row],[Дл]],#REF!,"=500",#REF!,Таблица1[[#This Row],[Толщ]],#REF!,Таблица1[[#This Row],[АСТРА]]) ->  | AE39: 5 | AF39: =CONCATENATE(Таблица1[[#This Row],[слово]]," ",Таблица1[[#This Row],[профиль]]) -> Труба 20х20х1 | AG39: Труба 20х20 чм, 1.0 мм | AH39: Труба | AI39: 20х20х1 | AJ39: 20х20 | AK39: 1 | AL39: =CONCATENATE(Таблица1[[#This Row],[слово]]," ",Таблица1[[#This Row],[Столбец35]]) -> Труба 20х20
A40: =IF(Таблица1[[#This Row],[Столбец19]]=0,"z","") ->  | D40: 6000 | E40: =Таблица1[[#This Row],[АСТРА]] -> Труба 20х20, 1.5 мм, ТР2020 | F40: =Таблица1[[#This Row],[ГОСТ]] -> Труба 20х20х1,5 | G40: 1.5 | H40: =SUMIFS(#REF!,#REF!,500,#REF!,Таблица1[[#This Row],[Дл]],#REF!,Таблица1[[#This Row],[Толщ]],#REF!,Таблица1[[#This Row],[АСТРА]]) ->  | I40: =SUMIFS(#REF!,#REF!,Таблица1[[#This Row],[Дл]],#REF!,"=500",#REF!,Таблица1[[#This Row],[Толщ]],#REF!,Таблица1[[#This Row],[АСТРА]]) ->  | J40: =SUMIFS(#REF!,#REF!,"<"&Таблица1[[#This Row],[Дл]],#REF!,"=500",#REF!,Таблица1[[#This Row],[Толщ]],#REF!,Таблица1[[#This Row],[АСТРА]]) ->  | K40: 1.872 | L40: =SUMIFS($I$8:$I$30,$F$8:$F$30,Таблица1[[#This Row],[Столбец5]]) -> 0 | M40: =Таблица1[[#This Row],[Столбец8]]+Таблица1[[#This Row],[Столбец9]] ->  | N40: =SUMIFS(#REF!,#REF!,Таблица1[[#This Row],[Дл]],#REF!,"=500",#REF!,Таблица1[[#This Row],[Толщ]],#REF!,Таблица1[[#This Row],[АСТРА]]) ->  | O40: =SUMIFS(#REF!,#REF!,"<"&Таблица1[[#This Row],[Дл]],#REF!,"=500",#REF!,Таблица1[[#This Row],[Толщ]],#REF!,Таблица1[[#This Row],[АСТРА]]) ->  | P40: =Таблица1[[#This Row],[Столбец13]]+Таблица1[[#This Row],[Столбец14]] ->  | Q40: =Таблица1[[#This Row],[Столбец28]]+Таблица1[[#This Row],[Столбец29]]-Таблица1[[#This Row],[Столбец27]] ->  | R40: =SUMIFS(#REF!,#REF!,Таблица1[[#This Row],[Дл]],#REF!,"=500",#REF!,Таблица1[[#This Row],[Толщ]],#REF!,Таблица1[[#This Row],[АСТРА]]) ->  | S40: =SUMIFS(#REF!,#REF!,"<"&Таблица1[[#This Row],[Дл]],#REF!,"=500",#REF!,Таблица1[[#This Row],[Толщ]],#REF!,Таблица1[[#This Row],[АСТРА]]) ->  | T40: =Таблица1[[#This Row],[Столбец17]]+Таблица1[[#This Row],[Столбец18]] ->  | X40: =SUMIFS(#REF!,#REF!,Таблица1[[#This Row],[Дл]],#REF!,"=500",#REF!,Таблица1[[#This Row],[Толщ]],#REF!,Таблица1[[#This Row],[АСТРА]]) ->  | Y40: =SUMIFS(#REF!,#REF!,"<"&Таблица1[[#This Row],[Дл]],#REF!,"=500",#REF!,Таблица1[[#This Row],[Толщ]],#REF!,Таблица1[[#This Row],[АСТРА]]) ->  | Z40: =Таблица1[[#This Row],[Столбец23]]+Таблица1[[#This Row],[Столбец24]] ->  | AA40: =Таблица1[[#This Row],[Столбец28]]+Таблица1[[#This Row],[Столбец29]]-Таблица1[[#This Row],[Столбец27]] ->  | AB40: =Таблица1[[#This Row],[резы]]*Таблица1[[#This Row],[шир.рез]]/1000*Таблица1[[#This Row],[коэф]]/2 -> 0 | AC40: =SUMIFS(#REF!,#REF!,Таблица1[[#This Row],[Дл]],#REF!,"=500",#REF!,Таблица1[[#This Row],[Толщ]],#REF!,Таблица1[[#This Row],[АСТРА]]) ->  | AD40: =SUMIFS(#REF!,#REF!,"<"&Таблица1[[#This Row],[Дл]],#REF!,"=500",#REF!,Таблица1[[#This Row],[Толщ]],#REF!,Таблица1[[#This Row],[АСТРА]]) ->  | AE40: 5 | AF40: =CONCATENATE(Таблица1[[#This Row],[слово]]," ",Таблица1[[#This Row],[профиль]]) -> Труба 20х20х1,5 | AG40: Труба 20х20, 1.5 мм, ТР2020 | AH40: Труба | AI40: 20х20х1,5 | AJ40: 20х20 | AK40: 1.5 | AL40: =CONCATENATE(Таблица1[[#This Row],[слово]]," ",Таблица1[[#This Row],[Столбец35]]) -> Труба 20х20
A41: =IF(Таблица1[[#This Row],[Столбец19]]=0,"z","") ->  | B41: 8 | D41: 6000 | E41: =Таблица1[[#This Row],[АСТРА]] -> Труба 25, 1.5 мм, тр25 | F41: =Таблица1[[#This Row],[ГОСТ]] -> Труба 25х1,5 | G41: 1.5 | H41: =SUMIFS(#REF!,#REF!,500,#REF!,Таблица1[[#This Row],[Дл]],#REF!,Таблица1[[#This Row],[Толщ]],#REF!,Таблица1[[#This Row],[АСТРА]]) ->  | I41: =SUMIFS(#REF!,#REF!,Таблица1[[#This Row],[Дл]],#REF!,"=500",#REF!,Таблица1[[#This Row],[Толщ]],#REF!,Таблица1[[#This Row],[АСТРА]]) ->  | J41: =SUMIFS(#REF!,#REF!,"<"&Таблица1[[#This Row],[Дл]],#REF!,"=500",#REF!,Таблица1[[#This Row],[Толщ]],#REF!,Таблица1[[#This Row],[АСТРА]]) ->  | K41: 1.74 | L41: =SUMIFS($I$8:$I$30,$F$8:$F$30,Таблица1[[#This Row],[Столбец5]]) -> 0 | M41: =Таблица1[[#This Row],[Столбец8]]+Таблица1[[#This Row],[Столбец9]] ->  | N41: =SUMIFS(#REF!,#REF!,Таблица1[[#This Row],[Дл]],#REF!,"=500",#REF!,Таблица1[[#This Row],[Толщ]],#REF!,Таблица1[[#This Row],[АСТРА]]) ->  | O41: =SUMIFS(#REF!,#REF!,"<"&Таблица1[[#This Row],[Дл]],#REF!,"=500",#REF!,Таблица1[[#This Row],[Толщ]],#REF!,Таблица1[[#This Row],[АСТРА]]) ->  | P41: =Таблица1[[#This Row],[Столбец13]]+Таблица1[[#This Row],[Столбец14]] ->  | Q41: =Таблица1[[#This Row],[Столбец28]]+Таблица1[[#This Row],[Столбец29]]-Таблица1[[#This Row],[Столбец27]] ->  | R41: =SUMIFS(#REF!,#REF!,Таблица1[[#This Row],[Дл]],#REF!,"=500",#REF!,Таблица1[[#This Row],[Толщ]],#REF!,Таблица1[[#This Row],[АСТРА]]) ->  | S41: =SUMIFS(#REF!,#REF!,"<"&Таблица1[[#This Row],[Дл]],#REF!,"=500",#REF!,Таблица1[[#This Row],[Толщ]],#REF!,Таблица1[[#This Row],[АСТРА]]) ->  | T41: =Таблица1[[#This Row],[Столбец17]]+Таблица1[[#This Row],[Столбец18]] ->  | X41: =SUMIFS(#REF!,#REF!,Таблица1[[#This Row],[Дл]],#REF!,"=500",#REF!,Таблица1[[#This Row],[Толщ]],#REF!,Таблица1[[#This Row],[АСТРА]]) ->  | Y41: =SUMIFS(#REF!,#REF!,"<"&Таблица1[[#This Row],[Дл]],#REF!,"=500",#REF!,Таблица1[[#This Row],[Толщ]],#REF!,Таблица1[[#This Row],[АСТРА]]) ->  | Z41: =Таблица1[[#This Row],[Столбец23]]+Таблица1[[#This Row],[Столбец24]] ->  | AA41: =Таблица1[[#This Row],[Столбец28]]+Таблица1[[#This Row],[Столбец29]]-Таблица1[[#This Row],[Столбец27]] ->  | AB41: =Таблица1[[#This Row],[резы]]*Таблица1[[#This Row],[шир.рез]]/1000*Таблица1[[#This Row],[коэф]]/2 -> 0 | AC41: =SUMIFS(#REF!,#REF!,Таблица1[[#This Row],[Дл]],#REF!,"=500",#REF!,Таблица1[[#This Row],[Толщ]],#REF!,Таблица1[[#This Row],[АСТРА]]) ->  | AD41: =SUMIFS(#REF!,#REF!,"<"&Таблица1[[#This Row],[Дл]],#REF!,"=500",#REF!,Таблица1[[#This Row],[Толщ]],#REF!,Таблица1[[#This Row],[АСТРА]]) ->  | AE41: 5 | AF41: =CONCATENATE(Таблица1[[#This Row],[слово]]," ",Таблица1[[#This Row],[профиль]]) -> Труба 25х1,5 | AG41: Труба 25, 1.5 мм, тр25 | AH41: Труба | AI41: 25х1,5 | AJ41: 25 | AK41: 1.5 | AL41: =CONCATENATE(Таблица1[[#This Row],[слово]]," ",Таблица1[[#This Row],[Столбец35]]) -> Труба 25
A42: =IF(Таблица1[[#This Row],[Столбец19]]=0,"z","") ->  | B42: 1 | D42: 6000 | E42: =Таблица1[[#This Row],[АСТРА]] -> Труба 25х25 чм, 0.8 мм | F42: =Таблица1[[#This Row],[ГОСТ]] -> Труба 25х25х0,8 | G42: 0.8 | H42: =SUMIFS(#REF!,#REF!,500,#REF!,Таблица1[[#This Row],[Дл]],#REF!,Таблица1[[#This Row],[Толщ]],#REF!,Таблица1[[#This Row],[АСТРА]]) ->  | I42: =SUMIFS(#REF!,#REF!,Таблица1[[#This Row],[Дл]],#REF!,"=500",#REF!,Таблица1[[#This Row],[Толщ]],#REF!,Таблица1[[#This Row],[АСТРА]]) ->  | J42: =SUMIFS(#REF!,#REF!,"<"&Таблица1[[#This Row],[Дл]],#REF!,"=500",#REF!,Таблица1[[#This Row],[Толщ]],#REF!,Таблица1[[#This Row],[АСТРА]]) ->  | K42: 1.2 | L42: =SUMIFS($I$8:$I$30,$F$8:$F$30,Таблица1[[#This Row],[Столбец5]]) -> 0 | M42: =Таблица1[[#This Row],[Столбец8]]+Таблица1[[#This Row],[Столбец9]] ->  | N42: =SUMIFS(#REF!,#REF!,Таблица1[[#This Row],[Дл]],#REF!,"=500",#REF!,Таблица1[[#This Row],[Толщ]],#REF!,Таблица1[[#This Row],[АСТРА]]) ->  | O42: =SUMIFS(#REF!,#REF!,"<"&Таблица1[[#This Row],[Дл]],#REF!,"=500",#REF!,Таблица1[[#This Row],[Толщ]],#REF!,Таблица1[[#This Row],[АСТРА]]) ->  | P42: =Таблица1[[#This Row],[Столбец13]]+Таблица1[[#This Row],[Столбец14]] ->  | Q42: =Таблица1[[#This Row],[Столбец28]]+Таблица1[[#This Row],[Столбец29]]-Таблица1[[#This Row],[Столбец27]] ->  | R42: =SUMIFS(#REF!,#REF!,Таблица1[[#This Row],[Дл]],#REF!,"=500",#REF!,Таблица1[[#This Row],[Толщ]],#REF!,Таблица1[[#This Row],[АСТРА]]) ->  | S42: =SUMIFS(#REF!,#REF!,"<"&Таблица1[[#This Row],[Дл]],#REF!,"=500",#REF!,Таблица1[[#This Row],[Толщ]],#REF!,Таблица1[[#This Row],[АСТРА]]) ->  | T42: =Таблица1[[#This Row],[Столбец17]]+Таблица1[[#This Row],[Столбец18]] ->  | X42: =SUMIFS(#REF!,#REF!,Таблица1[[#This Row],[Дл]],#REF!,"=500",#REF!,Таблица1[[#This Row],[Толщ]],#REF!,Таблица1[[#This Row],[АСТРА]]) ->  | Y42: =SUMIFS(#REF!,#REF!,"<"&Таблица1[[#This Row],[Дл]],#REF!,"=500",#REF!,Таблица1[[#This Row],[Толщ]],#REF!,Таблица1[[#This Row],[АСТРА]]) ->  | Z42: =Таблица1[[#This Row],[Столбец23]]+Таблица1[[#This Row],[Столбец24]] ->  | AA42: =Таблица1[[#This Row],[Столбец28]]+Таблица1[[#This Row],[Столбец29]]-Таблица1[[#This Row],[Столбец27]] ->  | AB42: =Таблица1[[#This Row],[резы]]*Таблица1[[#This Row],[шир.рез]]/1000*Таблица1[[#This Row],[коэф]]/2 -> 0 | AC42: =SUMIFS(#REF!,#REF!,Таблица1[[#This Row],[Дл]],#REF!,"=500",#REF!,Таблица1[[#This Row],[Толщ]],#REF!,Таблица1[[#This Row],[АСТРА]]) ->  | AD42: =SUMIFS(#REF!,#REF!,"<"&Таблица1[[#This Row],[Дл]],#REF!,"=500",#REF!,Таблица1[[#This Row],[Толщ]],#REF!,Таблица1[[#This Row],[АСТРА]]) ->  | AE42: 5 | AF42: =CONCATENATE(Таблица1[[#This Row],[слово]]," ",Таблица1[[#This Row],[профиль]]) -> Труба 25х25х0,8 | AG42: Труба 25х25 чм, 0.8 мм | AH42: Труба | AI42: 25х25х0,8 | AJ42: 25х25 | AK42: 0.8 | AL42: =CONCATENATE(Таблица1[[#This Row],[слово]]," ",Таблица1[[#This Row],[Столбец35]]) -> Труба 25х25
A43: =IF(Таблица1[[#This Row],[Столбец19]]=0,"z","") ->  | B43: 2 | D43: 6000 | E43: =Таблица1[[#This Row],[АСТРА]] -> Труба 25х25 чм, 1.0 мм | F43: =Таблица1[[#This Row],[ГОСТ]] -> Труба 25х25х1 | G43: 1 | H43: =SUMIFS(#REF!,#REF!,500,#REF!,Таблица1[[#This Row],[Дл]],#REF!,Таблица1[[#This Row],[Толщ]],#REF!,Таблица1[[#This Row],[АСТРА]]) ->  | I43: =SUMIFS(#REF!,#REF!,Таблица1[[#This Row],[Дл]],#REF!,"=500",#REF!,Таблица1[[#This Row],[Толщ]],#REF!,Таблица1[[#This Row],[АСТРА]]) ->  | J43: =SUMIFS(#REF!,#REF!,"<"&Таблица1[[#This Row],[Дл]],#REF!,"=500",#REF!,Таблица1[[#This Row],[Толщ]],#REF!,Таблица1[[#This Row],[АСТРА]]) ->  | K43: 1.48 | L43: =SUMIFS($I$8:$I$30,$F$8:$F$30,Таблица1[[#This Row],[Столбец5]]) -> 0 | M43: =Таблица1[[#This Row],[Столбец8]]+Таблица1[[#This Row],[Столбец9]] ->  | N43: =SUMIFS(#REF!,#REF!,Таблица1[[#This Row],[Дл]],#REF!,"=500",#REF!,Таблица1[[#This Row],[Толщ]],#REF!,Таблица1[[#This Row],[АСТРА]]) ->  | O43: =SUMIFS(#REF!,#REF!,"<"&Таблица1[[#This Row],[Дл]],#REF!,"=500",#REF!,Таблица1[[#This Row],[Толщ]],#REF!,Таблица1[[#This Row],[АСТРА]]) ->  | P43: =Таблица1[[#This Row],[Столбец13]]+Таблица1[[#This Row],[Столбец14]] ->  | Q43: =Таблица1[[#This Row],[Столбец28]]+Таблица1[[#This Row],[Столбец29]]-Таблица1[[#This Row],[Столбец27]] ->  | R43: =SUMIFS(#REF!,#REF!,Таблица1[[#This Row],[Дл]],#REF!,"=500",#REF!,Таблица1[[#This Row],[Толщ]],#REF!,Таблица1[[#This Row],[АСТРА]]) ->  | S43: =SUMIFS(#REF!,#REF!,"<"&Таблица1[[#This Row],[Дл]],#REF!,"=500",#REF!,Таблица1[[#This Row],[Толщ]],#REF!,Таблица1[[#This Row],[АСТРА]]) ->  | T43: =Таблица1[[#This Row],[Столбец17]]+Таблица1[[#This Row],[Столбец18]] ->  | X43: =SUMIFS(#REF!,#REF!,Таблица1[[#This Row],[Дл]],#REF!,"=500",#REF!,Таблица1[[#This Row],[Толщ]],#REF!,Таблица1[[#This Row],[АСТРА]]) ->  | Y43: =SUMIFS(#REF!,#REF!,"<"&Таблица1[[#This Row],[Дл]],#REF!,"=500",#REF!,Таблица1[[#This Row],[Толщ]],#REF!,Таблица1[[#This Row],[АСТРА]]) ->  | Z43: =Таблица1[[#This Row],[Столбец23]]+Таблица1[[#This Row],[Столбец24]] ->  | AA43: =Таблица1[[#This Row],[Столбец28]]+Таблица1[[#This Row],[Столбец29]]-Таблица1[[#This Row],[Столбец27]] ->  | AB43: =Таблица1[[#This Row],[резы]]*Таблица1[[#This Row],[шир.рез]]/1000*Таблица1[[#This Row],[коэф]]/2 -> 0 | AC43: =SUMIFS(#REF!,#REF!,Таблица1[[#This Row],[Дл]],#REF!,"=500",#REF!,Таблица1[[#This Row],[Толщ]],#REF!,Таблица1[[#This Row],[АСТРА]]) ->  | AD43: =SUMIFS(#REF!,#REF!,"<"&Таблица1[[#This Row],[Дл]],#REF!,"=500",#REF!,Таблица1[[#This Row],[Толщ]],#REF!,Таблица1[[#This Row],[АСТРА]]) ->  | AE43: 5 | AF43: =CONCATENATE(Таблица1[[#This Row],[слово]]," ",Таблица1[[#This Row],[профиль]]) -> Труба 25х25х1 | AG43: Труба 25х25 чм, 1.0 мм | AH43: Труба | AI43: 25х25х1 | AJ43: 25х25 | AK43: 1 | AL43: =CONCATENATE(Таблица1[[#This Row],[слово]]," ",Таблица1[[#This Row],[Столбец35]]) -> Труба 25х25
A44: =IF(Таблица1[[#This Row],[Столбец19]]=0,"z","") ->  | B44: 3 | D44: 6000 | E44: =Таблица1[[#This Row],[АСТРА]] -> Труба 25х25 чм, 1.2 мм | F44: =Таблица1[[#This Row],[ГОСТ]] -> Труба 25х25х1.2 | G44: 1.2 | H44: =SUMIFS(#REF!,#REF!,500,#REF!,Таблица1[[#This Row],[Дл]],#REF!,Таблица1[[#This Row],[Толщ]],#REF!,Таблица1[[#This Row],[АСТРА]]) ->  | I44: =SUMIFS(#REF!,#REF!,Таблица1[[#This Row],[Дл]],#REF!,"=500",#REF!,Таблица1[[#This Row],[Толщ]],#REF!,Таблица1[[#This Row],[АСТРА]]) ->  | J44: =SUMIFS(#REF!,#REF!,"<"&Таблица1[[#This Row],[Дл]],#REF!,"=500",#REF!,Таблица1[[#This Row],[Толщ]],#REF!,Таблица1[[#This Row],[АСТРА]]) ->  | K44: 1.75 | L44: =SUMIFS($I$8:$I$30,$F$8:$F$30,Таблица1[[#This Row],[Столбец5]]) -> 0 | M44: =Таблица1[[#This Row],[Столбец8]]+Таблица1[[#This Row],[Столбец9]] ->  | N44: =SUMIFS(#REF!,#REF!,Таблица1[[#This Row],[Дл]],#REF!,"=500",#REF!,Таблица1[[#This Row],[Толщ]],#REF!,Таблица1[[#This Row],[АСТРА]]) ->  | O44: =SUMIFS(#REF!,#REF!,"<"&Таблица1[[#This Row],[Дл]],#REF!,"=500",#REF!,Таблица1[[#This Row],[Толщ]],#REF!,Таблица1[[#This Row],[АСТРА]]) ->  | P44: =Таблица1[[#This Row],[Столбец13]]+Таблица1[[#This Row],[Столбец14]] ->  | Q44: =Таблица1[[#This Row],[Столбец28]]+Таблица1[[#This Row],[Столбец29]]-Таблица1[[#This Row],[Столбец27]] ->  | R44: =SUMIFS(#REF!,#REF!,Таблица1[[#This Row],[Дл]],#REF!,"=500",#REF!,Таблица1[[#This Row],[Толщ]],#REF!,Таблица1[[#This Row],[АСТРА]]) ->  | S44: =SUMIFS(#REF!,#REF!,"<"&Таблица1[[#This Row],[Дл]],#REF!,"=500",#REF!,Таблица1[[#This Row],[Толщ]],#REF!,Таблица1[[#This Row],[АСТРА]]) ->  | T44: =Таблица1[[#This Row],[Столбец17]]+Таблица1[[#This Row],[Столбец18]] ->  | X44: =SUMIFS(#REF!,#REF!,Таблица1[[#This Row],[Дл]],#REF!,"=500",#REF!,Таблица1[[#This Row],[Толщ]],#REF!,Таблица1[[#This Row],[АСТРА]]) ->  | Y44: =SUMIFS(#REF!,#REF!,"<"&Таблица1[[#This Row],[Дл]],#REF!,"=500",#REF!,Таблица1[[#This Row],[Толщ]],#REF!,Таблица1[[#This Row],[АСТРА]]) ->  | Z44: =Таблица1[[#This Row],[Столбец23]]+Таблица1[[#This Row],[Столбец24]] ->  | AA44: =Таблица1[[#This Row],[Столбец28]]+Таблица1[[#This Row],[Столбец29]]-Таблица1[[#This Row],[Столбец27]] ->  | AB44: =Таблица1[[#This Row],[резы]]*Таблица1[[#This Row],[шир.рез]]/1000*Таблица1[[#This Row],[коэф]]/2 -> 0 | AC44: =SUMIFS(#REF!,#REF!,Таблица1[[#This Row],[Дл]],#REF!,"=500",#REF!,Таблица1[[#This Row],[Толщ]],#REF!,Таблица1[[#This Row],[АСТРА]]) ->  | AD44: =SUMIFS(#REF!,#REF!,"<"&Таблица1[[#This Row],[Дл]],#REF!,"=500",#REF!,Таблица1[[#This Row],[Толщ]],#REF!,Таблица1[[#This Row],[АСТРА]]) ->  | AE44: 5 | AF44: =CONCATENATE(Таблица1[[#This Row],[слово]]," ",Таблица1[[#This Row],[профиль]]) -> Труба 25х25х1.2 | AG44: Труба 25х25 чм, 1.2 мм | AH44: Труба | AI44: 25х25х1.2 | AJ44: 25х25 | AK44: 1.2 | AL44: =CONCATENATE(Таблица1[[#This Row],[слово]]," ",Таблица1[[#This Row],[Столбец35]]) -> Труба 25х25
A45: =IF(Таблица1[[#This Row],[Столбец19]]=0,"z","") ->  | D45: 6000 | E45: =Таблица1[[#This Row],[АСТРА]] -> Труба 30х15, 1.5 мм, тр3015 | F45: =Таблица1[[#This Row],[ГОСТ]] -> Труба 30х15х1,5 | G45: 1.5 | H45: =SUMIFS(#REF!,#REF!,500,#REF!,Таблица1[[#This Row],[Дл]],#REF!,Таблица1[[#This Row],[Толщ]],#REF!,Таблица1[[#This Row],[АСТРА]]) ->  | I45: =SUMIFS(#REF!,#REF!,Таблица1[[#This Row],[Дл]],#REF!,"=500",#REF!,Таблица1[[#This Row],[Толщ]],#REF!,Таблица1[[#This Row],[АСТРА]]) ->  | J45: =SUMIFS(#REF!,#REF!,"<"&Таблица1[[#This Row],[Дл]],#REF!,"=500",#REF!,Таблица1[[#This Row],[Толщ]],#REF!,Таблица1[[#This Row],[АСТРА]]) ->  | K45: 1.92 | L45: =SUMIFS($I$8:$I$30,$F$8:$F$30,Таблица1[[#This Row],[Столбец5]]) -> 0 | M45: =Таблица1[[#This Row],[Столбец8]]+Таблица1[[#This Row],[Столбец9]] ->  | N45: =SUMIFS(#REF!,#REF!,Таблица1[[#This Row],[Дл]],#REF!,"=500",#REF!,Таблица1[[#This Row],[Толщ]],#REF!,Таблица1[[#This Row],[АСТРА]]) ->  | O45: =SUMIFS(#REF!,#REF!,"<"&Таблица1[[#This Row],[Дл]],#REF!,"=500",#REF!,Таблица1[[#This Row],[Толщ]],#REF!,Таблица1[[#This Row],[АСТРА]]) ->  | P45: =Таблица1[[#This Row],[Столбец13]]+Таблица1[[#This Row],[Столбец14]] ->  | Q45: =Таблица1[[#This Row],[Столбец28]]+Таблица1[[#This Row],[Столбец29]]-Таблица1[[#This Row],[Столбец27]] ->  | R45: =SUMIFS(#REF!,#REF!,Таблица1[[#This Row],[Дл]],#REF!,"=500",#REF!,Таблица1[[#This Row],[Толщ]],#REF!,Таблица1[[#This Row],[АСТРА]]) ->  | S45: =SUMIFS(#REF!,#REF!,"<"&Таблица1[[#This Row],[Дл]],#REF!,"=500",#REF!,Таблица1[[#This Row],[Толщ]],#REF!,Таблица1[[#This Row],[АСТРА]]) ->  | T45: =Таблица1[[#This Row],[Столбец17]]+Таблица1[[#This Row],[Столбец18]] ->  | X45: =SUMIFS(#REF!,#REF!,Таблица1[[#This Row],[Дл]],#REF!,"=500",#REF!,Таблица1[[#This Row],[Толщ]],#REF!,Таблица1[[#This Row],[АСТРА]]) ->  | Y45: =SUMIFS(#REF!,#REF!,"<"&Таблица1[[#This Row],[Дл]],#REF!,"=500",#REF!,Таблица1[[#This Row],[Толщ]],#REF!,Таблица1[[#This Row],[АСТРА]]) ->  | Z45: =Таблица1[[#This Row],[Столбец23]]+Таблица1[[#This Row],[Столбец24]] ->  | AA45: =Таблица1[[#This Row],[Столбец28]]+Таблица1[[#This Row],[Столбец29]]-Таблица1[[#This Row],[Столбец27]] ->  | AB45: =Таблица1[[#This Row],[резы]]*Таблица1[[#This Row],[шир.рез]]/1000*Таблица1[[#This Row],[коэф]]/2 -> 0 | AC45: =SUMIFS(#REF!,#REF!,Таблица1[[#This Row],[Дл]],#REF!,"=500",#REF!,Таблица1[[#This Row],[Толщ]],#REF!,Таблица1[[#This Row],[АСТРА]]) ->  | AD45: =SUMIFS(#REF!,#REF!,"<"&Таблица1[[#This Row],[Дл]],#REF!,"=500",#REF!,Таблица1[[#This Row],[Толщ]],#REF!,Таблица1[[#This Row],[АСТРА]]) ->  | AE45: 5 | AF45: =CONCATENATE(Таблица1[[#This Row],[слово]]," ",Таблица1[[#This Row],[профиль]]) -> Труба 30х15х1,5 | AG45: Труба 30х15, 1.5 мм, тр3015 | AH45: Труба | AI45: 30х15х1,5 | AJ45: 30х15 | AK45: 1.5 | AL45: =CONCATENATE(Таблица1[[#This Row],[слово]]," ",Таблица1[[#This Row],[Столбец35]]) -> Труба 30х15
A46: =IF(Таблица1[[#This Row],[Столбец19]]=0,"z","") ->  | B46: 4 | D46: 6000 | E46: =Таблица1[[#This Row],[АСТРА]] -> Труба 30х20, 1.2 мм, тр3020 | F46: =Таблица1[[#This Row],[ГОСТ]] -> Труба 30х20х1.2 | G46: 1.2 | H46: =SUMIFS(#REF!,#REF!,500,#REF!,Таблица1[[#This Row],[Дл]],#REF!,Таблица1[[#This Row],[Толщ]],#REF!,Таблица1[[#This Row],[АСТРА]]) ->  | I46: =SUMIFS(#REF!,#REF!,Таблица1[[#This Row],[Дл]],#REF!,"=500",#REF!,Таблица1[[#This Row],[Толщ]],#REF!,Таблица1[[#This Row],[АСТРА]]) ->  | J46: =SUMIFS(#REF!,#REF!,"<"&Таблица1[[#This Row],[Дл]],#REF!,"=500",#REF!,Таблица1[[#This Row],[Толщ]],#REF!,Таблица1[[#This Row],[АСТРА]]) ->  | K46: 1.76 | L46: =SUMIFS($I$8:$I$30,$F$8:$F$30,Таблица1[[#This Row],[Столбец5]]) -> 330 | M46: =Таблица1[[#This Row],[Столбец8]]+Таблица1[[#This Row],[Столбец9]] ->  | N46: =SUMIFS(#REF!,#REF!,Таблица1[[#This Row],[Дл]],#REF!,"=500",#REF!,Таблица1[[#This Row],[Толщ]],#REF!,Таблица1[[#This Row],[АСТРА]]) ->  | O46: =SUMIFS(#REF!,#REF!,"<"&Таблица1[[#This Row],[Дл]],#REF!,"=500",#REF!,Таблица1[[#This Row],[Толщ]],#REF!,Таблица1[[#This Row],[АСТРА]]) ->  | P46: =Таблица1[[#This Row],[Столбец13]]+Таблица1[[#This Row],[Столбец14]] ->  | Q46: =Таблица1[[#This Row],[Столбец28]]+Таблица1[[#This Row],[Столбец29]]-Таблица1[[#This Row],[Столбец27]] ->  | R46: =SUMIFS(#REF!,#REF!,Таблица1[[#This Row],[Дл]],#REF!,"=500",#REF!,Таблица1[[#This Row],[Толщ]],#REF!,Таблица1[[#This Row],[АСТРА]]) ->  | S46: =SUMIFS(#REF!,#REF!,"<"&Таблица1[[#This Row],[Дл]],#REF!,"=500",#REF!,Таблица1[[#This Row],[Толщ]],#REF!,Таблица1[[#This Row],[АСТРА]]) ->  | T46: =Таблица1[[#This Row],[Столбец17]]+Таблица1[[#This Row],[Столбец18]] ->  | X46: =SUMIFS(#REF!,#REF!,Таблица1[[#This Row],[Дл]],#REF!,"=500",#REF!,Таблица1[[#This Row],[Толщ]],#REF!,Таблица1[[#This Row],[АСТРА]]) ->  | Y46: =SUMIFS(#REF!,#REF!,"<"&Таблица1[[#This Row],[Дл]],#REF!,"=500",#REF!,Таблица1[[#This Row],[Толщ]],#REF!,Таблица1[[#This Row],[АСТРА]]) ->  | Z46: =Таблица1[[#This Row],[Столбец23]]+Таблица1[[#This Row],[Столбец24]] ->  | AA46: =Таблица1[[#This Row],[Столбец28]]+Таблица1[[#This Row],[Столбец29]]-Таблица1[[#This Row],[Столбец27]] ->  | AB46: =Таблица1[[#This Row],[резы]]*Таблица1[[#This Row],[шир.рез]]/1000*Таблица1[[#This Row],[коэф]]/2 -> 1.452 | AC46: =SUMIFS(#REF!,#REF!,Таблица1[[#This Row],[Дл]],#REF!,"=500",#REF!,Таблица1[[#This Row],[Толщ]],#REF!,Таблица1[[#This Row],[АСТРА]]) ->  | AD46: =SUMIFS(#REF!,#REF!,"<"&Таблица1[[#This Row],[Дл]],#REF!,"=500",#REF!,Таблица1[[#This Row],[Толщ]],#REF!,Таблица1[[#This Row],[АСТРА]]) ->  | AE46: 5 | AF46: =CONCATENATE(Таблица1[[#This Row],[слово]]," ",Таблица1[[#This Row],[профиль]]) -> Труба 30х20х1.2 | AG46: Труба 30х20, 1.2 мм, тр3020 | AH46: Труба | AI46: 30х20х1.2 | AJ46: 30х20 | AK46: 1.2 | AL46: =CONCATENATE(Таблица1[[#This Row],[слово]]," ",Таблица1[[#This Row],[Столбец35]]) -> Труба 30х20
A47: =IF(Таблица1[[#This Row],[Столбец19]]=0,"z","") ->  | D47: 6000 | E47: =Таблица1[[#This Row],[АСТРА]] -> Труба 30х30, 2.0 мм, тр3030 | F47: =Таблица1[[#This Row],[ГОСТ]] -> Труба 30х30х2 | G47: 2 | H47: =SUMIFS(#REF!,#REF!,500,#REF!,Таблица1[[#This Row],[Дл]],#REF!,Таблица1[[#This Row],[Толщ]],#REF!,Таблица1[[#This Row],[АСТРА]]) ->  | I47: =SUMIFS(#REF!,#REF!,Таблица1[[#This Row],[Дл]],#REF!,"=500",#REF!,Таблица1[[#This Row],[Толщ]],#REF!,Таблица1[[#This Row],[АСТРА]]) ->  | J47: =SUMIFS(#REF!,#REF!,"<"&Таблица1[[#This Row],[Дл]],#REF!,"=500",#REF!,Таблица1[[#This Row],[Толщ]],#REF!,Таблица1[[#This Row],[АСТРА]]) ->  | K47: 3.4 | L47: =SUMIFS($I$8:$I$30,$F$8:$F$30,Таблица1[[#This Row],[Столбец5]]) -> 0 | M47: =Таблица1[[#This Row],[Столбец8]]+Таблица1[[#This Row],[Столбец9]] ->  | N47: =SUMIFS(#REF!,#REF!,Таблица1[[#This Row],[Дл]],#REF!,"=500",#REF!,Таблица1[[#This Row],[Толщ]],#REF!,Таблица1[[#This Row],[АСТРА]]) ->  | O47: =SUMIFS(#REF!,#REF!,"<"&Таблица1[[#This Row],[Дл]],#REF!,"=500",#REF!,Таблица1[[#This Row],[Толщ]],#REF!,Таблица1[[#This Row],[АСТРА]]) ->  | P47: =Таблица1[[#This Row],[Столбец13]]+Таблица1[[#This Row],[Столбец14]] ->  | Q47: =Таблица1[[#This Row],[Столбец28]]+Таблица1[[#This Row],[Столбец29]]-Таблица1[[#This Row],[Столбец27]] ->  | R47: =SUMIFS(#REF!,#REF!,Таблица1[[#This Row],[Дл]],#REF!,"=500",#REF!,Таблица1[[#This Row],[Толщ]],#REF!,Таблица1[[#This Row],[АСТРА]]) ->  | S47: =SUMIFS(#REF!,#REF!,"<"&Таблица1[[#This Row],[Дл]],#REF!,"=500",#REF!,Таблица1[[#This Row],[Толщ]],#REF!,Таблица1[[#This Row],[АСТРА]]) ->  | T47: =Таблица1[[#This Row],[Столбец17]]+Таблица1[[#This Row],[Столбец18]] ->  | X47: =SUMIFS(#REF!,#REF!,Таблица1[[#This Row],[Дл]],#REF!,"=500",#REF!,Таблица1[[#This Row],[Толщ]],#REF!,Таблица1[[#This Row],[АСТРА]]) ->  | Y47: =SUMIFS(#REF!,#REF!,"<"&Таблица1[[#This Row],[Дл]],#REF!,"=500",#REF!,Таблица1[[#This Row],[Толщ]],#REF!,Таблица1[[#This Row],[АСТРА]]) ->  | Z47: =Таблица1[[#This Row],[Столбец23]]+Таблица1[[#This Row],[Столбец24]] ->  | AA47: =Таблица1[[#This Row],[Столбец28]]+Таблица1[[#This Row],[Столбец29]]-Таблица1[[#This Row],[Столбец27]] ->  | AB47: =Таблица1[[#This Row],[резы]]*Таблица1[[#This Row],[шир.рез]]/1000*Таблица1[[#This Row],[коэф]]/2 -> 0 | AC47: =SUMIFS(#REF!,#REF!,Таблица1[[#This Row],[Дл]],#REF!,"=500",#REF!,Таблица1[[#This Row],[Толщ]],#REF!,Таблица1[[#This Row],[АСТРА]]) ->  | AD47: =SUMIFS(#REF!,#REF!,"<"&Таблица1[[#This Row],[Дл]],#REF!,"=500",#REF!,Таблица1[[#This Row],[Толщ]],#REF!,Таблица1[[#This Row],[АСТРА]]) ->  | AE47: 5 | AF47: =CONCATENATE(Таблица1[[#This Row],[слово]]," ",Таблица1[[#This Row],[профиль]]) -> Труба 30х30х2 | AG47: Труба 30х30, 2.0 мм, тр3030 | AH47: Труба | AI47: 30х30х2 | AJ47: 30х30 | AK47: 2 | AL47: =CONCATENATE(Таблица1[[#This Row],[слово]]," ",Таблица1[[#This Row],[Столбец35]]) -> Труба 30х30
A48: =IF(Таблица1[[#This Row],[Столбец19]]=0,"z","") ->  | B48: 7 | D48: 6000 | E48: =Таблица1[[#This Row],[АСТРА]] -> Труба 30х80, 2.0 мм, тр3080 | F48: =Таблица1[[#This Row],[ГОСТ]] -> Труба 30х80х2.0 | G48: 2 | H48: =SUMIFS(#REF!,#REF!,500,#REF!,Таблица1[[#This Row],[Дл]],#REF!,Таблица1[[#This Row],[Толщ]],#REF!,Таблица1[[#This Row],[АСТРА]]) ->  | I48: =SUMIFS(#REF!,#REF!,Таблица1[[#This Row],[Дл]],#REF!,"=500",#REF!,Таблица1[[#This Row],[Толщ]],#REF!,Таблица1[[#This Row],[АСТРА]]) ->  | J48: =SUMIFS(#REF!,#REF!,"<"&Таблица1[[#This Row],[Дл]],#REF!,"=500",#REF!,Таблица1[[#This Row],[Толщ]],#REF!,Таблица1[[#This Row],[АСТРА]]) ->  | K48: 6.54 | L48: =SUMIFS($I$8:$I$30,$F$8:$F$30,Таблица1[[#This Row],[Столбец5]]) -> 0 | M48: =Таблица1[[#This Row],[Столбец8]]+Таблица1[[#This Row],[Столбец9]] ->  | N48: =SUMIFS(#REF!,#REF!,Таблица1[[#This Row],[Дл]],#REF!,"=500",#REF!,Таблица1[[#This Row],[Толщ]],#REF!,Таблица1[[#This Row],[АСТРА]]) ->  | O48: =SUMIFS(#REF!,#REF!,"<"&Таблица1[[#This Row],[Дл]],#REF!,"=500",#REF!,Таблица1[[#This Row],[Толщ]],#REF!,Таблица1[[#This Row],[АСТРА]]) ->  | P48: =Таблица1[[#This Row],[Столбец13]]+Таблица1[[#This Row],[Столбец14]] ->  | Q48: =Таблица1[[#This Row],[Столбец28]]+Таблица1[[#This Row],[Столбец29]]-Таблица1[[#This Row],[Столбец27]] ->  | R48: =SUMIFS(#REF!,#REF!,Таблица1[[#This Row],[Дл]],#REF!,"=500",#REF!,Таблица1[[#This Row],[Толщ]],#REF!,Таблица1[[#This Row],[АСТРА]]) ->  | S48: =SUMIFS(#REF!,#REF!,"<"&Таблица1[[#This Row],[Дл]],#REF!,"=500",#REF!,Таблица1[[#This Row],[Толщ]],#REF!,Таблица1[[#This Row],[АСТРА]]) ->  | T48: =Таблица1[[#This Row],[Столбец17]]+Таблица1[[#This Row],[Столбец18]] ->  | X48: =SUMIFS(#REF!,#REF!,Таблица1[[#This Row],[Дл]],#REF!,"=500",#REF!,Таблица1[[#This Row],[Толщ]],#REF!,Таблица1[[#This Row],[АСТРА]]) ->  | Y48: =SUMIFS(#REF!,#REF!,"<"&Таблица1[[#This Row],[Дл]],#REF!,"=500",#REF!,Таблица1[[#This Row],[Толщ]],#REF!,Таблица1[[#This Row],[АСТРА]]) ->  | Z48: =Таблица1[[#This Row],[Столбец23]]+Таблица1[[#This Row],[Столбец24]] ->  | AA48: =Таблица1[[#This Row],[Столбец28]]+Таблица1[[#This Row],[Столбец29]]-Таблица1[[#This Row],[Столбец27]] ->  | AB48: =Таблица1[[#This Row],[резы]]*Таблица1[[#This Row],[шир.рез]]/1000*Таблица1[[#This Row],[коэф]]/2 -> 0 | AC48: =SUMIFS(#REF!,#REF!,Таблица1[[#This Row],[Дл]],#REF!,"=500",#REF!,Таблица1[[#This Row],[Толщ]],#REF!,Таблица1[[#This Row],[АСТРА]]) ->  | AD48: =SUMIFS(#REF!,#REF!,"<"&Таблица1[[#This Row],[Дл]],#REF!,"=500",#REF!,Таблица1[[#This Row],[Толщ]],#REF!,Таблица1[[#This Row],[АСТРА]]) ->  | AE48: 5 | AF48: =CONCATENATE(Таблица1[[#This Row],[слово]]," ",Таблица1[[#This Row],[профиль]]) -> Труба 30х80х2.0 | AG48: Труба 30х80, 2.0 мм, тр3080 | AH48: Труба | AI48: 30х80х2.0 | AJ48: 30х80 | AK48: 2 | AL48: =CONCATENATE(Таблица1[[#This Row],[слово]]," ",Таблица1[[#This Row],[Столбец35]]) -> Труба 30х80
A49: =IF(Таблица1[[#This Row],[Столбец19]]=0,"z","") ->  | D49: 6000 | E49: =Таблица1[[#This Row],[АСТРА]] -> Труба 32.5, 3.0 мм, тр32.5 | F49: =Таблица1[[#This Row],[ГОСТ]] -> Труба 32,5х3 | G49: 3 | H49: =SUMIFS(#REF!,#REF!,500,#REF!,Таблица1[[#This Row],[Дл]],#REF!,Таблица1[[#This Row],[Толщ]],#REF!,Таблица1[[#This Row],[АСТРА]]) ->  | I49: =SUMIFS(#REF!,#REF!,Таблица1[[#This Row],[Дл]],#REF!,"=500",#REF!,Таблица1[[#This Row],[Толщ]],#REF!,Таблица1[[#This Row],[АСТРА]]) ->  | J49: =SUMIFS(#REF!,#REF!,"<"&Таблица1[[#This Row],[Дл]],#REF!,"=500",#REF!,Таблица1[[#This Row],[Толщ]],#REF!,Таблица1[[#This Row],[АСТРА]]) ->  | K49: 4.316 | L49: =SUMIFS($I$8:$I$30,$F$8:$F$30,Таблица1[[#This Row],[Столбец5]]) -> 0 | M49: =Таблица1[[#This Row],[Столбец8]]+Таблица1[[#This Row],[Столбец9]] ->  | N49: =SUMIFS(#REF!,#REF!,Таблица1[[#This Row],[Дл]],#REF!,"=500",#REF!,Таблица1[[#This Row],[Толщ]],#REF!,Таблица1[[#This Row],[АСТРА]]) ->  | O49: =SUMIFS(#REF!,#REF!,"<"&Таблица1[[#This Row],[Дл]],#REF!,"=500",#REF!,Таблица1[[#This Row],[Толщ]],#REF!,Таблица1[[#This Row],[АСТРА]]) ->  | P49: =Таблица1[[#This Row],[Столбец13]]+Таблица1[[#This Row],[Столбец14]] ->  | Q49: =Таблица1[[#This Row],[Столбец28]]+Таблица1[[#This Row],[Столбец29]]-Таблица1[[#This Row],[Столбец27]] ->  | R49: =SUMIFS(#REF!,#REF!,Таблица1[[#This Row],[Дл]],#REF!,"=500",#REF!,Таблица1[[#This Row],[Толщ]],#REF!,Таблица1[[#This Row],[АСТРА]]) ->  | S49: =SUMIFS(#REF!,#REF!,"<"&Таблица1[[#This Row],[Дл]],#REF!,"=500",#REF!,Таблица1[[#This Row],[Толщ]],#REF!,Таблица1[[#This Row],[АСТРА]]) ->  | T49: =Таблица1[[#This Row],[Столбец17]]+Таблица1[[#This Row],[Столбец18]] ->  | X49: =SUMIFS(#REF!,#REF!,Таблица1[[#This Row],[Дл]],#REF!,"=500",#REF!,Таблица1[[#This Row],[Толщ]],#REF!,Таблица1[[#This Row],[АСТРА]]) ->  | Y49: =SUMIFS(#REF!,#REF!,"<"&Таблица1[[#This Row],[Дл]],#REF!,"=500",#REF!,Таблица1[[#This Row],[Толщ]],#REF!,Таблица1[[#This Row],[АСТРА]]) ->  | Z49: =Таблица1[[#This Row],[Столбец23]]+Таблица1[[#This Row],[Столбец24]] ->  | AA49: =Таблица1[[#This Row],[Столбец28]]+Таблица1[[#This Row],[Столбец29]]-Таблица1[[#This Row],[Столбец27]] ->  | AB49: =Таблица1[[#This Row],[резы]]*Таблица1[[#This Row],[шир.рез]]/1000*Таблица1[[#This Row],[коэф]]/2 -> 0 | AC49: =SUMIFS(#REF!,#REF!,Таблица1[[#This Row],[Дл]],#REF!,"=500",#REF!,Таблица1[[#This Row],[Толщ]],#REF!,Таблица1[[#This Row],[АСТРА]]) ->  | AD49: =SUMIFS(#REF!,#REF!,"<"&Таблица1[[#This Row],[Дл]],#REF!,"=500",#REF!,Таблица1[[#This Row],[Толщ]],#REF!,Таблица1[[#This Row],[АСТРА]]) ->  | AE49: 5 | AF49: =CONCATENATE(Таблица1[[#This Row],[слово]]," ",Таблица1[[#This Row],[профиль]]) -> Труба 32,5х3 | AG49: Труба 32.5, 3.0 мм, тр32.5 | AH49: Труба | AI49: 32,5х3 | AJ49: 32 | AK49: 3 | AL49: =CONCATENATE(Таблица1[[#This Row],[слово]]," ",Таблица1[[#This Row],[Столбец35]]) -> Труба 32
A50: =IF(Таблица1[[#This Row],[Столбец19]]=0,"z","") ->  | B50: 9 | D50: 6000 | E50: =Таблица1[[#This Row],[АСТРА]] -> Труба 40х20, 1.0 мм, тр4020 | F50: =Таблица1[[#This Row],[ГОСТ]] -> Труба 40х20х1 | G50: 1 | H50: =SUMIFS(#REF!,#REF!,500,#REF!,Таблица1[[#This Row],[Дл]],#REF!,Таблица1[[#This Row],[Толщ]],#REF!,Таблица1[[#This Row],[АСТРА]]) ->  | I50: =SUMIFS(#REF!,#REF!,Таблица1[[#This Row],[Дл]],#REF!,"=500",#REF!,Таблица1[[#This Row],[Толщ]],#REF!,Таблица1[[#This Row],[АСТРА]]) ->  | J50: =SUMIFS(#REF!,#REF!,"<"&Таблица1[[#This Row],[Дл]],#REF!,"=500",#REF!,Таблица1[[#This Row],[Толщ]],#REF!,Таблица1[[#This Row],[АСТРА]]) ->  | K50: 1.884 | L50: =SUMIFS($I$8:$I$30,$F$8:$F$30,Таблица1[[#This Row],[Столбец5]]) -> 0 | M50: =Таблица1[[#This Row],[Столбец8]]+Таблица1[[#This Row],[Столбец9]] ->  | N50: =SUMIFS(#REF!,#REF!,Таблица1[[#This Row],[Дл]],#REF!,"=500",#REF!,Таблица1[[#This Row],[Толщ]],#REF!,Таблица1[[#This Row],[АСТРА]]) ->  | O50: =SUMIFS(#REF!,#REF!,"<"&Таблица1[[#This Row],[Дл]],#REF!,"=500",#REF!,Таблица1[[#This Row],[Толщ]],#REF!,Таблица1[[#This Row],[АСТРА]]) ->  | P50: =Таблица1[[#This Row],[Столбец13]]+Таблица1[[#This Row],[Столбец14]] ->  | Q50: =Таблица1[[#This Row],[Столбец28]]+Таблица1[[#This Row],[Столбец29]]-Таблица1[[#This Row],[Столбец27]] ->  | R50: =SUMIFS(#REF!,#REF!,Таблица1[[#This Row],[Дл]],#REF!,"=500",#REF!,Таблица1[[#This Row],[Толщ]],#REF!,Таблица1[[#This Row],[АСТРА]]) ->  | S50: =SUMIFS(#REF!,#REF!,"<"&Таблица1[[#This Row],[Дл]],#REF!,"=500",#REF!,Таблица1[[#This Row],[Толщ]],#REF!,Таблица1[[#This Row],[АСТРА]]) ->  | T50: =Таблица1[[#This Row],[Столбец17]]+Таблица1[[#This Row],[Столбец18]] ->  | X50: =SUMIFS(#REF!,#REF!,Таблица1[[#This Row],[Дл]],#REF!,"=500",#REF!,Таблица1[[#This Row],[Толщ]],#REF!,Таблица1[[#This Row],[АСТРА]]) ->  | Y50: =SUMIFS(#REF!,#REF!,"<"&Таблица1[[#This Row],[Дл]],#REF!,"=500",#REF!,Таблица1[[#This Row],[Толщ]],#REF!,Таблица1[[#This Row],[АСТРА]]) ->  | Z50: =Таблица1[[#This Row],[Столбец23]]+Таблица1[[#This Row],[Столбец24]] ->  | AA50: =Таблица1[[#This Row],[Столбец28]]+Таблица1[[#This Row],[Столбец29]]-Таблица1[[#This Row],[Столбец27]] ->  | AB50: =Таблица1[[#This Row],[резы]]*Таблица1[[#This Row],[шир.рез]]/1000*Таблица1[[#This Row],[коэф]]/2 -> 0 | AC50: =SUMIFS(#REF!,#REF!,Таблица1[[#This Row],[Дл]],#REF!,"=500",#REF!,Таблица1[[#This Row],[Толщ]],#REF!,Таблица1[[#This Row],[АСТРА]]) ->  | AD50: =SUMIFS(#REF!,#REF!,"<"&Таблица1[[#This Row],[Дл]],#REF!,"=500",#REF!,Таблица1[[#This Row],[Толщ]],#REF!,Таблица1[[#This Row],[АСТРА]]) ->  | AE50: 5 | AF50: =CONCATENATE(Таблица1[[#This Row],[слово]]," ",Таблица1[[#This Row],[профиль]]) -> Труба 40х20х1 | AG50: Труба 40х20, 1.0 мм, тр4020 | AH50: Труба | AI50: 40х20х1 | AJ50: 40х20 | AK50: 1 | AL50: =CONCATENATE(Таблица1[[#This Row],[слово]]," ",Таблица1[[#This Row],[Столбец35]]) -> Труба 40х20
A51: =IF(Таблица1[[#This Row],[Столбец19]]=0,"z","") ->  | B51: 5 | D51: 6000 | E51: =Таблица1[[#This Row],[АСТРА]] -> Труба 40х20, 1.2 мм, тр4020 | F51: =Таблица1[[#This Row],[ГОСТ]] -> Труба 40х20х1.2 | G51: 1.2 | H51: =SUMIFS(#REF!,#REF!,500,#REF!,Таблица1[[#This Row],[Дл]],#REF!,Таблица1[[#This Row],[Толщ]],#REF!,Таблица1[[#This Row],[АСТРА]]) ->  | I51: =SUMIFS(#REF!,#REF!,Таблица1[[#This Row],[Дл]],#REF!,"=500",#REF!,Таблица1[[#This Row],[Толщ]],#REF!,Таблица1[[#This Row],[АСТРА]]) ->  | J51: =SUMIFS(#REF!,#REF!,"<"&Таблица1[[#This Row],[Дл]],#REF!,"=500",#REF!,Таблица1[[#This Row],[Толщ]],#REF!,Таблица1[[#This Row],[АСТРА]]) ->  | K51: 2.14 | L51: =SUMIFS($I$8:$I$30,$F$8:$F$30,Таблица1[[#This Row],[Столбец5]]) -> 220 | M51: =Таблица1[[#This Row],[Столбец8]]+Таблица1[[#This Row],[Столбец9]] ->  | N51: =SUMIFS(#REF!,#REF!,Таблица1[[#This Row],[Дл]],#REF!,"=500",#REF!,Таблица1[[#This Row],[Толщ]],#REF!,Таблица1[[#This Row],[АСТРА]]) ->  | O51: =SUMIFS(#REF!,#REF!,"<"&Таблица1[[#This Row],[Дл]],#REF!,"=500",#REF!,Таблица1[[#This Row],[Толщ]],#REF!,Таблица1[[#This Row],[АСТРА]]) ->  | P51: =Таблица1[[#This Row],[Столбец13]]+Таблица1[[#This Row],[Столбец14]] ->  | Q51: =Таблица1[[#This Row],[Столбец28]]+Таблица1[[#This Row],[Столбец29]]-Таблица1[[#This Row],[Столбец27]] ->  | R51: =SUMIFS(#REF!,#REF!,Таблица1[[#This Row],[Дл]],#REF!,"=500",#REF!,Таблица1[[#This Row],[Толщ]],#REF!,Таблица1[[#This Row],[АСТРА]]) ->  | S51: =SUMIFS(#REF!,#REF!,"<"&Таблица1[[#This Row],[Дл]],#REF!,"=500",#REF!,Таблица1[[#This Row],[Толщ]],#REF!,Таблица1[[#This Row],[АСТРА]]) ->  | T51: =Таблица1[[#This Row],[Столбец17]]+Таблица1[[#This Row],[Столбец18]] ->  | X51: =SUMIFS(#REF!,#REF!,Таблица1[[#This Row],[Дл]],#REF!,"=500",#REF!,Таблица1[[#This Row],[Толщ]],#REF!,Таблица1[[#This Row],[АСТРА]]) ->  | Y51: =SUMIFS(#REF!,#REF!,"<"&Таблица1[[#This Row],[Дл]],#REF!,"=500",#REF!,Таблица1[[#This Row],[Толщ]],#REF!,Таблица1[[#This Row],[АСТРА]]) ->  | Z51: =Таблица1[[#This Row],[Столбец23]]+Таблица1[[#This Row],[Столбец24]] ->  | AA51: =Таблица1[[#This Row],[Столбец28]]+Таблица1[[#This Row],[Столбец29]]-Таблица1[[#This Row],[Столбец27]] ->  | AB51: =Таблица1[[#This Row],[резы]]*Таблица1[[#This Row],[шир.рез]]/1000*Таблица1[[#This Row],[коэф]]/2 -> 1.177 | AC51: =SUMIFS(#REF!,#REF!,Таблица1[[#This Row],[Дл]],#REF!,"=500",#REF!,Таблица1[[#This Row],[Толщ]],#REF!,Таблица1[[#This Row],[АСТРА]]) ->  | AD51: =SUMIFS(#REF!,#REF!,"<"&Таблица1[[#This Row],[Дл]],#REF!,"=500",#REF!,Таблица1[[#This Row],[Толщ]],#REF!,Таблица1[[#This Row],[АСТРА]]) ->  | AE51: 5 | AF51: =CONCATENATE(Таблица1[[#This Row],[слово]]," ",Таблица1[[#This Row],[профиль]]) -> Труба 40х20х1.2 | AG51: Труба 40х20, 1.2 мм, тр4020 | AH51: Труба | AI51: 40х20х1.2 | AJ51: 40х20 | AK51: 1.2 | AL51: =CONCATENATE(Таблица1[[#This Row],[слово]]," ",Таблица1[[#This Row],[Столбец35]]) -> Труба 40х20
A52: =IF(Таблица1[[#This Row],[Столбец19]]=0,"z","") ->  | D52: 6000 | E52: =Таблица1[[#This Row],[АСТРА]] -> Труба 60х30, 2.0 мм, тр6030 | F52: =Таблица1[[#This Row],[ГОСТ]] -> Труба 60х30х2 | G52: 2 | H52: =SUMIFS(#REF!,#REF!,500,#REF!,Таблица1[[#This Row],[Дл]],#REF!,Таблица1[[#This Row],[Толщ]],#REF!,Таблица1[[#This Row],[АСТРА]]) ->  | I52: =SUMIFS(#REF!,#REF!,Таблица1[[#This Row],[Дл]],#REF!,"=500",#REF!,Таблица1[[#This Row],[Толщ]],#REF!,Таблица1[[#This Row],[АСТРА]]) ->  | J52: =SUMIFS(#REF!,#REF!,"<"&Таблица1[[#This Row],[Дл]],#REF!,"=500",#REF!,Таблица1[[#This Row],[Толщ]],#REF!,Таблица1[[#This Row],[АСТРА]]) ->  | K52: 5.3 | L52: =SUMIFS($I$8:$I$30,$F$8:$F$30,Таблица1[[#This Row],[Столбец5]]) -> 0 | M52: =Таблица1[[#This Row],[Столбец8]]+Таблица1[[#This Row],[Столбец9]] ->  | N52: =SUMIFS(#REF!,#REF!,Таблица1[[#This Row],[Дл]],#REF!,"=500",#REF!,Таблица1[[#This Row],[Толщ]],#REF!,Таблица1[[#This Row],[АСТРА]]) ->  | O52: =SUMIFS(#REF!,#REF!,"<"&Таблица1[[#This Row],[Дл]],#REF!,"=500",#REF!,Таблица1[[#This Row],[Толщ]],#REF!,Таблица1[[#This Row],[АСТРА]]) ->  | P52: =Таблица1[[#This Row],[Столбец13]]+Таблица1[[#This Row],[Столбец14]] ->  | Q52: =Таблица1[[#This Row],[Столбец28]]+Таблица1[[#This Row],[Столбец29]]-Таблица1[[#This Row],[Столбец27]] ->  | R52: =SUMIFS(#REF!,#REF!,Таблица1[[#This Row],[Дл]],#REF!,"=500",#REF!,Таблица1[[#This Row],[Толщ]],#REF!,Таблица1[[#This Row],[АСТРА]]) ->  | S52: =SUMIFS(#REF!,#REF!,"<"&Таблица1[[#This Row],[Дл]],#REF!,"=500",#REF!,Таблица1[[#This Row],[Толщ]],#REF!,Таблица1[[#This Row],[АСТРА]]) ->  | T52: =Таблица1[[#This Row],[Столбец17]]+Таблица1[[#This Row],[Столбец18]] ->  | X52: =SUMIFS(#REF!,#REF!,Таблица1[[#This Row],[Дл]],#REF!,"=500",#REF!,Таблица1[[#This Row],[Толщ]],#REF!,Таблица1[[#This Row],[АСТРА]]) ->  | Y52: =SUMIFS(#REF!,#REF!,"<"&Таблица1[[#This Row],[Дл]],#REF!,"=500",#REF!,Таблица1[[#This Row],[Толщ]],#REF!,Таблица1[[#This Row],[АСТРА]]) ->  | Z52: =Таблица1[[#This Row],[Столбец23]]+Таблица1[[#This Row],[Столбец24]] ->  | AA52: =Таблица1[[#This Row],[Столбец28]]+Таблица1[[#This Row],[Столбец29]]-Таблица1[[#This Row],[Столбец27]] ->  | AB52: =Таблица1[[#This Row],[резы]]*Таблица1[[#This Row],[шир.рез]]/1000*Таблица1[[#This Row],[коэф]]/2 -> 0 | AC52: =SUMIFS(#REF!,#REF!,Таблица1[[#This Row],[Дл]],#REF!,"=500",#REF!,Таблица1[[#This Row],[Толщ]],#REF!,Таблица1[[#This Row],[АСТРА]]) ->  | AD52: =SUMIFS(#REF!,#REF!,"<"&Таблица1[[#This Row],[Дл]],#REF!,"=500",#REF!,Таблица1[[#This Row],[Толщ]],#REF!,Таблица1[[#This Row],[АСТРА]]) ->  | AE52: 5 | AF52: =CONCATENATE(Таблица1[[#This Row],[слово]]," ",Таблица1[[#This Row],[профиль]]) -> Труба 60х30х2 | AG52: Труба 60х30, 2.0 мм, тр6030 | AH52: Труба | AI52: 60х30х2 | AJ52: 60х30 | AK52: 2 | AL52: =CONCATENATE(Таблица1[[#This Row],[слово]]," ",Таблица1[[#This Row],[Столбец35]]) -> Труба 60х30
A53: =IF(Таблица1[[#This Row],[Столбец19]]=0,"z","") ->  | D53: 6000 | E53: =Таблица1[[#This Row],[АСТРА]] -> Труба плоскоовальная 30х15, 1.2 мм, трпл-ов3015 | F53: =Таблица1[[#This Row],[ГОСТ]] -> Труба пл.ов. 30х15х1,2 | G53: 1.2 | H53: =SUMIFS(#REF!,#REF!,500,#REF!,Таблица1[[#This Row],[Дл]],#REF!,Таблица1[[#This Row],[Толщ]],#REF!,Таблица1[[#This Row],[АСТРА]]) ->  | I53: =SUMIFS(#REF!,#REF!,Таблица1[[#This Row],[Дл]],#REF!,"=500",#REF!,Таблица1[[#This Row],[Толщ]],#REF!,Таблица1[[#This Row],[АСТРА]]) ->  | J53: =SUMIFS(#REF!,#REF!,"<"&Таблица1[[#This Row],[Дл]],#REF!,"=500",#REF!,Таблица1[[#This Row],[Толщ]],#REF!,Таблица1[[#This Row],[АСТРА]]) ->  | K53: 1.4 | L53: =SUMIFS($I$8:$I$30,$F$8:$F$30,Таблица1[[#This Row],[Столбец5]]) -> 0 | M53: =Таблица1[[#This Row],[Столбец8]]+Таблица1[[#This Row],[Столбец9]] ->  | N53: =SUMIFS(#REF!,#REF!,Таблица1[[#This Row],[Дл]],#REF!,"=500",#REF!,Таблица1[[#This Row],[Толщ]],#REF!,Таблица1[[#This Row],[АСТРА]]) ->  | O53: =SUMIFS(#REF!,#REF!,"<"&Таблица1[[#This Row],[Дл]],#REF!,"=500",#REF!,Таблица1[[#This Row],[Толщ]],#REF!,Таблица1[[#This Row],[АСТРА]]) ->  | P53: =Таблица1[[#This Row],[Столбец13]]+Таблица1[[#This Row],[Столбец14]] ->  | Q53: =Таблица1[[#This Row],[Столбец28]]+Таблица1[[#This Row],[Столбец29]]-Таблица1[[#This Row],[Столбец27]] ->  | R53: =SUMIFS(#REF!,#REF!,Таблица1[[#This Row],[Дл]],#REF!,"=500",#REF!,Таблица1[[#This Row],[Толщ]],#REF!,Таблица1[[#This Row],[АСТРА]]) ->  | S53: =SUMIFS(#REF!,#REF!,"<"&Таблица1[[#This Row],[Дл]],#REF!,"=500",#REF!,Таблица1[[#This Row],[Толщ]],#REF!,Таблица1[[#This Row],[АСТРА]]) ->  | T53: =Таблица1[[#This Row],[Столбец17]]+Таблица1[[#This Row],[Столбец18]] ->  | X53: =SUMIFS(#REF!,#REF!,Таблица1[[#This Row],[Дл]],#REF!,"=500",#REF!,Таблица1[[#This Row],[Толщ]],#REF!,Таблица1[[#This Row],[АСТРА]]) ->  | Y53: =SUMIFS(#REF!,#REF!,"<"&Таблица1[[#This Row],[Дл]],#REF!,"=500",#REF!,Таблица1[[#This Row],[Толщ]],#REF!,Таблица1[[#This Row],[АСТРА]]) ->  | Z53: =Таблица1[[#This Row],[Столбец23]]+Таблица1[[#This Row],[Столбец24]] ->  | AA53: =Таблица1[[#This Row],[Столбец28]]+Таблица1[[#This Row],[Столбец29]]-Таблица1[[#This Row],[Столбец27]] ->  | AB53: =Таблица1[[#This Row],[резы]]*Таблица1[[#This Row],[шир.рез]]/1000*Таблица1[[#This Row],[коэф]]/2 -> 0 | AC53: =SUMIFS(#REF!,#REF!,Таблица1[[#This Row],[Дл]],#REF!,"=500",#REF!,Таблица1[[#This Row],[Толщ]],#REF!,Таблица1[[#This Row],[АСТРА]]) ->  | AD53: =SUMIFS(#REF!,#REF!,"<"&Таблица1[[#This Row],[Дл]],#REF!,"=500",#REF!,Таблица1[[#This Row],[Толщ]],#REF!,Таблица1[[#This Row],[АСТРА]]) ->  | AE53: 5 | AF53: =CONCATENATE(Таблица1[[#This Row],[слово]]," ",Таблица1[[#This Row],[профиль]]) -> Труба пл.ов. 30х15х1,2 | AG53: Труба плоскоовальная 30х15, 1.2 мм, трпл-ов3015 | AH53: Труба пл.ов. | AI53: 30х15х1,2 | AJ53: 30х15 | AK53: 1.2 | AL53: =CONCATENATE(Таблица1[[#This Row],[слово]]," ",Таблица1[[#This Row],[Столбец35]]) -> Труба пл.ов. 30х15
A54: =IF(Таблица1[[#This Row],[Столбец19]]=0,"z","") ->  | B54: 6 | D54: 6000 | E54: =Таблица1[[#This Row],[АСТРА]] -> Труба плоскоовальная 30х15, 1.5 мм, трпл-ов3015 | F54: =Таблица1[[#This Row],[ГОСТ]] -> Труба пл.ов. 30х15х1,5 | G54: 1.5 | H54: =SUMIFS(#REF!,#REF!,500,#REF!,Таблица1[[#This Row],[Дл]],#REF!,Таблица1[[#This Row],[Толщ]],#REF!,Таблица1[[#This Row],[АСТРА]]) ->  | I54: =SUMIFS(#REF!,#REF!,Таблица1[[#This Row],[Дл]],#REF!,"=500",#REF!,Таблица1[[#This Row],[Толщ]],#REF!,Таблица1[[#This Row],[АСТРА]]) ->  | J54: =SUMIFS(#REF!,#REF!,"<"&Таблица1[[#This Row],[Дл]],#REF!,"=500",#REF!,Таблица1[[#This Row],[Толщ]],#REF!,Таблица1[[#This Row],[АСТРА]]) ->  | K54: 1.918 | L54: =SUMIFS($I$8:$I$30,$F$8:$F$30,Таблица1[[#This Row],[Столбец5]]) -> 0 | M54: =Таблица1[[#This Row],[Столбец8]]+Таблица1[[#This Row],[Столбец9]] ->  | N54: =SUMIFS(#REF!,#REF!,Таблица1[[#This Row],[Дл]],#REF!,"=500",#REF!,Таблица1[[#This Row],[Толщ]],#REF!,Таблица1[[#This Row],[АСТРА]]) ->  | O54: =SUMIFS(#REF!,#REF!,"<"&Таблица1[[#This Row],[Дл]],#REF!,"=500",#REF!,Таблица1[[#This Row],[Толщ]],#REF!,Таблица1[[#This Row],[АСТРА]]) ->  | P54: =Таблица1[[#This Row],[Столбец13]]+Таблица1[[#This Row],[Столбец14]] ->  | Q54: =Таблица1[[#This Row],[Столбец28]]+Таблица1[[#This Row],[Столбец29]]-Таблица1[[#This Row],[Столбец27]] ->  | R54: =SUMIFS(#REF!,#REF!,Таблица1[[#This Row],[Дл]],#REF!,"=500",#REF!,Таблица1[[#This Row],[Толщ]],#REF!,Таблица1[[#This Row],[АСТРА]]) ->  | S54: =SUMIFS(#REF!,#REF!,"<"&Таблица1[[#This Row],[Дл]],#REF!,"=500",#REF!,Таблица1[[#This Row],[Толщ]],#REF!,Таблица1[[#This Row],[АСТРА]]) ->  | T54: =Таблица1[[#This Row],[Столбец17]]+Таблица1[[#This Row],[Столбец18]] ->  | X54: =SUMIFS(#REF!,#REF!,Таблица1[[#This Row],[Дл]],#REF!,"=500",#REF!,Таблица1[[#This Row],[Толщ]],#REF!,Таблица1[[#This Row],[АСТРА]]) ->  | Y54: =SUMIFS(#REF!,#REF!,"<"&Таблица1[[#This Row],[Дл]],#REF!,"=500",#REF!,Таблица1[[#This Row],[Толщ]],#REF!,Таблица1[[#This Row],[АСТРА]]) ->  | Z54: =Таблица1[[#This Row],[Столбец23]]+Таблица1[[#This Row],[Столбец24]] ->  | AA54: =Таблица1[[#This Row],[Столбец28]]+Таблица1[[#This Row],[Столбец29]]-Таблица1[[#This Row],[Столбец27]] ->  | AB54: =Таблица1[[#This Row],[резы]]*Таблица1[[#This Row],[шир.рез]]/1000*Таблица1[[#This Row],[коэф]]/2 -> 0 | AC54: =SUMIFS(#REF!,#REF!,Таблица1[[#This Row],[Дл]],#REF!,"=500",#REF!,Таблица1[[#This Row],[Толщ]],#REF!,Таблица1[[#This Row],[АСТРА]]) ->  | AD54: =SUMIFS(#REF!,#REF!,"<"&Таблица1[[#This Row],[Дл]],#REF!,"=500",#REF!,Таблица1[[#This Row],[Толщ]],#REF!,Таблица1[[#This Row],[АСТРА]]) ->  | AE54: 5 | AF54: =CONCATENATE(Таблица1[[#This Row],[слово]]," ",Таблица1[[#This Row],[профиль]]) -> Труба пл.ов. 30х15х1,5 | AG54: Труба плоскоовальная 30х15, 1.5 мм, трпл-ов3015 | AH54: Труба пл.ов. | AI54: 30х15х1,5 | AJ54: 30х15 | AK54: 1.5 | AL54: =CONCATENATE(Таблица1[[#This Row],[слово]]," ",Таблица1[[#This Row],[Столбец35]]) -> Труба пл.ов. 30х15
B61: Подпись | F61: Инженер-технолог
B62: Подпись | F62: Нач техотдела
B63: Подпись | F63: Генеральный директор
